Cogmind - Beta 14 @@@ ROGUE MODE // 2025.03.28 @ 18:14:23 Player: Prakos Result: Self-destructed Performance ------------- Evolutions (1) 500 Regions Visited (2) 400 Robots Destroyed (24) 120 Value Destroyed (479) 479 Prototype IDs (1) 20 Alien Tech Used (0) 0 Bonus (0) 0 TOTAL SCORE: 1519 Bonus ------- None Cogmind --------- Core Integrity 315/400 Matter 300/300 Energy 54/100 System Corruption 11% Temperature Cool (0) Movement Treading (160) Location -9/Materials Parts ------- > --- POWER (1) -------- (None) > --- PROPULSION (3) --- Light Treads Light Treads Light Treads > --- UTILITY (3) ------ Heat Sink Large Storage Unit Targeting Computer > --- WEAPON (2) ------- Medium Laser > --- INVENTORY (15) --- Light Ion Engine Light Ion Engine Light Treads Light Treads Light Treads Light Treads Light Treads Light Treads Improved Flight Unit Large Matter Pod (150) Shield Generator Field Recycling Unit (1) EM Pulse Gun Light Assault Rifle Peak State ------------ > --- POWER ------------ Ion Engine > --- PROPULSION ------- Light Treads Light Treads Light Treads > --- UTILITY ---------- Large Storage Unit Targeting Computer Hacking Suite > --- WEAPON ----------- Medium Laser Light Assault Rifle > --- INVENTORY -------- Light Ion Engine Light Ion Engine Light Treads Light Treads Light Treads Light Treads Improved Flight Unit Large Matter Pod Field Recycling Unit EM Pulse Gun Light Assault Rifle [Rating: 12] Favorites ----------- Power Ion Engine Engine Ion Engine Propulsion Light Treads Treads Light Treads Flight Unit Improved Flight Unit Utility Targeting Computer Device Field Recycling Unit Storage Large Storage Unit Processor Targeting Computer Hackware Hacking Suite Weapon Medium Laser Energy Gun Medium Laser Ballistic Gun Light Assault Rifle Build | -11 -10 -9 ------- Run | Yrd Mat Mat Slots Evolved 2 | . . 2 Power . | . . . Propulsion 1 | . . 1 Utility 1 | . . 1 Weapon . | . . . Parts Attached 22 | 6 11 5 Power 4 | 1 3 . Engine 4 | 1 3 . Core . | . . . Reactor . | . . . Propulsion 9 | 2 4 3 Treads 8 | 2 3 3 Leg . | . . . Wheel . | . . . Hover . | . . . Flight 1 | . 1 . Utility 6 | 1 3 2 Device 2 | . 1 1 Storage 2 | 1 1 . Processor 1 | . 1 . Hackware 1 | . . 1 Protection . | . . . Artifact . | . . . Weapon 3 | 2 1 . Energy Gun 1 | 1 . . Energy Cannon . | . . . Ballistic Gun 2 | 1 1 . Ballistic Cannon . | . . . Launcher . | . . . Special Weapon . | . . . Impact Weapon . | . . . Slashing Weapon . | . . . Piercing Weapon . | . . . Special Melee Weapon . | . . . Unidentified Prototypes 1 | . 1 . Parts Lost 4 | . 1 3 Power 2 | . 1 1 Propulsion . | . . . Utility 1 | . . 1 Weapon 1 | . . 1 Highest Loss Streak 3 | . 1 3 To Critical Strikes . | . . . Average Slot Usage (%) 95 | . 98 89 Engine 10 | . 13 6 Treads 29 | . 27 32 Device 2 | . 1 2 Storage 13 | . 14 11 Processor 11 | . 11 11 Hackware 2 | . . 6 Energy Gun 13 | . 14 11 Ballistic Gun 11 | . 14 7 Peak Build Rating 12 | 6 8 12 Average Rating 8 | 4 7 10 On Entrance 4 | . 6 8 Naked Turns . | . . . Heaviest Build 28 | 13 28 28 Greatest Support 60 | 40 40 60 Greatest Overweight (x) . | . . . Average Overweight (x) . | . . . Largest Inventory Capacity 15 | 8 15 15 Average Capacity 12 | 7 12 15 Most Carried 14 | 2 14 14 Average Carried 7 | 1 6 12 Final Capacity 15 | 8 15 15 Final Carried 14 | 2 13 14 Class Distribution -------------------- 100% | Mutant Dominant Class ---------------- Mutant | -10/Materials Mutant | -9/Materials Resources | -11 -10 -9 ----------- Run | Yrd Mat Mat Matter Collected 564 | 127 262 175 Remotely . | . . . Salvage Created 848 | . 535 313 Parts 45 | . 32 13 Haulers Intercepted 1 | . 1 . Recyclers Shooed 4 | . 4 . Parts Field Recycled 11 | . 11 . Retrieved Matter 49 | . 49 . Parts Self-Destructed . | . . . Prevented . | . . . Kills | -11 -10 -9 ------- Run | Yrd Mat Mat Combat Hostiles Destroyed 15 | . 9 6 Guns 14 | . 9 5 Classes Destroyed 11 | . 7 4 Worker 1 | . 1 . Builder 1 | . . 1 Hauler 1 | . 1 . Recycler 3 | . 3 . Operator 1 | . 1 . Watcher 2 | . 2 . Swarmer 6 | . 6 . Grunt 6 | . 3 3 Brawler 1 | . . 1 Duelist 1 | . . 1 Sentry 1 | . . 1 Best Kill Streak 9 | . 9 3 Combat Bots Only 3 | . 3 3 Max Kills in Single Turn 1 | . 1 1 Gunslinging . | . . . Exploded . | . . . Melee . | . . . Uniques/NPCs Destroyed . | . . . Combat | -11 -10 -9 -------- Run | Yrd Mat Mat Hostile Shots Fired 87 | . 49 38 Missed 22 | . 12 10 Damage Taken 859 | . 388 471 Core 169 | . 84 85 Absorbed by Shields . | . . . Core Remaining (%) 83 | 100 66 . Volleys Fired 79 | . 42 37 Largest 2 | . 2 2 Hottest 70 | . 70 70 Shots Fired 135 | . 84 51 Gun 135 | . 84 51 Cannon . | . . . Launcher . | . . . Special . | . . . Kinetic 57 | . 42 15 Thermal 78 | . 42 36 Explosive . | . . . Electromagnetic . | . . . Robot Hit Streak 25 | . 25 20 Robot Miss Streak 2 | . 2 2 Penetration Max . | . . . Secondary Targets 3 | . 3 . Max Gunslinging Chain 1 | . 1 . Shots Hit Robots 107 | . 66 41 Core Hits 40 | . 26 14 Critical Kills . | . . . Critical Parts Destroyed . | . . . Critical Strikes 8 | . 5 3 Burn 8 | . 5 3 Melee Attacks . | . . . Impact . | . . . Slashing . | . . . Piercing . | . . . Sneak Attacks . | . . . Combat Hostiles . | . . . Follow-up Attacks . | . . . Damage Inflicted 1178 | . 697 481 Guns 1168 | . 697 471 Cannons . | . . . Explosions . | . . . Melee . | . . . Ramming 10 | . . 10 Kinetic 348 | . 263 85 Thermal 820 | . 434 386 Explosive . | . . . Electromagnetic . | . . . Impact . | . . . Slashing . | . . . Piercing . | . . . Highest Corruption 11 | . . 11 Average Corruption 6 | . . 6 Corruption Purged . | . . . Corruption Blocked . | . . . Effects 4 | . . 4 Message Errors 1 | . . 1 Heat Flow Errors 1 | . . 1 Data Loss (major) 1 | . . 1 Weapon Failures 1 | . . 1 Overload Shots . | . . . Overflow Damage . | . . . Projectiles . | . . . Explosions . | . . . Melee . | . . . Knockbacks . | . . . Impact . | . . . Kinetic . | . . . Secondary . | . . . Self-Inflicted Damage . | . . . Shots . | . . . Rammed 3 | . . 3 Targets Rammed 4 | . 1 3 Kicked . | . . . Crushed 1 | . 1 . Highest Temperature 329 | . 329 152 Average Temperature 86 | . 99 60 Received Heat Transfer 300 | . 168 132 Siege Activations . | . . . Robots Corrupted . | . . . Combat Hostiles . | . . . Parts Fried . | . . . Impact Corruptions . | . . . Robots Melted 1 | . . 1 Combat Hostiles 1 | . . 1 Parts Melted 6 | . 3 3 Heat Transferred 3034 | . 1665 1369 Parts Sabotaged . | . . . Parts Stolen . | . . . Parts Stripped . | . . . Power Chain Reactions . | . . . Alert | -11 -10 -9 ------- Run | Yrd Mat Mat Peak Influence 256 | . 256 163 Initial 23 | . . 23 Average 72 | . 83 74 Maximum Alert Level 1 | . 1 . Low Security (%) 89 | 100 82 100 Level 1 10 | . 17 . Level 2 . | . . . Level 3 . | . . . Level 4 . | . . . Level 5 . | . . . High Security . | . . . Max Security . | . . . Squads Dispatched 1 | . 1 . Investigation . | . . . Extermination . | . . . Reinforcement 1 | . 1 . Assault . | . . . Garrison . | . . . Intercept . | . . . Searches Triggered . | . . . Construction Impeded . | . . . Haulers Reinforced . | . . . Active Scanning Responses . | . . . Cargo Convoy Interrupts . | . . . Stealth | -11 -10 -9 --------- Run | Yrd Mat Mat Distress Signals 3 | . 2 1 Communications Jammed . | . . . Distress Signals . | . . . Times Spotted 23 | . 14 9 Peak Tracking Total 6 | . 4 6 Tactical Retreats . | . . . Traps | -11 -10 -9 ------- Run | Yrd Mat Mat Traps Triggered 1 | . . 1 Indirectly . | . . . Trap Hack Attempts . | . . . Triggered . | . . . Disarmed . | . . . Reprogrammed . | . . . Reused . | . . . Traps Extracted . | . . . Installed . | . . . Triggered . | . . . Machines | -11 -10 -9 ---------- Run | Yrd Mat Mat Machines Disabled . | . . . Max in Single Turn . | . . . Machines Repaired . | . . . Machines Dismantled . | . . . Machines Sabotaged . | . . . Overloaded Fab Kills . | . . . Hacking | -11 -10 -9 --------- Run | Yrd Mat Mat Machines Accessed 3 | . 2 1 Terminals 2 | . 2 . Fabricators . | . . . Repair Stations . | . . . Recycling Units . | . . . Scanalyzers 1 | . . 1 Garrison Access . | . . . Total Hacks 9 | . 6 3 Successful 5 | . 2 3 Failed 4 | . 4 . Catastrophic 2 | . 2 . Database Lockouts . | . . . Manual 5 | . 5 . Terminals 6 | . 6 . Fabricators . | . . . Repair Stations . | . . . Recycling Units . | . . . Scanalyzers 3 | . . 3 Garrison Access . | . . . Terminal Hacks 1 | . 1 . Robot Analysis 1 | . 1 . Fabricator Hacks . | . . . Repair Station Hacks . | . . . Recycling Unit Hacks . | . . . Scanalyzer 3 | . . 3 Insert Component 1 | . . 1 Analyze 2 | . . 2 Garrison Access Hacks . | . . . Unauthorized Hacks 1 | . 1 . Terminals 1 | . 1 . Botnet 1 | . 1 . Fabricators . | . . . Repair Stations . | . . . Recycling Units . | . . . Scanalyzers . | . . . Garrison Access . | . . . Data Cores Recovered . | . . . Used . | . . . Hacking Detections 2 | . 2 . Full Trace Events . | . . . Feedback Events . | . . . Feedback Blocked . | . . . Robot Schematics Acquired . | . . . Robots Built . | . . . Authchips . | . . . Time . | . . . Total Robot Build Rating . | . . . Part Schematics Acquired 1 | . . 1 Parts Built . | . . . Authchips . | . . . Time . | . . . Total Part Build Rating . | . . . Parts Repaired . | . . . Time . | . . . Parts Recycled . | . . . Recycled Matter . | . . . Retrieved Matter . | . . . Retrieved Components . | . . . Parts Scanalyzed 1 | . . 1 Part Schematics Acquired 1 | . . 1 Parts Damaged . | . . . Bothacking | -11 -10 -9 ------------ Run | Yrd Mat Mat Used RIF Installer . | . . . Robots Hacked . | . . . Non-combat . | . . . Combat . | . . . Robot Hacks Applied . | . . . Relay Couplers Released . | . . . Fabnet Peak Effective % . | . . . Robots Rewired . | . . . Allies Hacked . | . . . Hacks Repelled . | . . . Allies | -11 -10 -9 -------- Run | Yrd Mat Mat Total Allies . | . . . Largest Group . | . . . Highest-Rated Group . | . . . Highest-Rated Ally . | . . . Total Orders . | . . . Ally Attacks . | . . . Total Damage . | . . . Kills . | . . . Allies Corrupted . | . . . Allies Melted . | . . . Intel | -11 -10 -9 ------- Run | Yrd Mat Mat Robot Analysis Total 1 | . 1 . Derelict Logs Recovered . | . . . Drone Launches . | . . . Drone Recoveries . | . . . Exploration | -11 -10 -9 ------------- Run | Yrd Mat Mat Turns Passed 711 | 71 436 204 Spaces Moved 283 | 40 177 66 Core 3 | 3 . . Treads 280 | 37 177 66 Legs . | . . . Wheels . | . . . Hover . | . . . Flight . | . . . Fastest Speed 50 | 50 160 160 Average Speed 158 | 151 160 160 Slowest Speed 160 | 160 160 160 Overloaded Moves . | . . . Propulsion Burnouts . | . . . Robots Hopped . | . . . Cave-ins Triggered . | . . . Exploration Rate (%) 17 | 4 39 9 Regions Visited 2 Branch Regions . Pre-discovered Areas . | . . . Known Exits Taken . | . . . Unknown Exits Taken 2 | 1 1 . Scrap Searched . | . . . Spaces Dug . | . . . Terrain Destroyed . | . . . Melee . | . . . Projectile . | . . . AOE . | . . . Terrain Rammed . | . . . Walls Destroyed . | . . . Machines Disabled . | . . . Actions | -11 -10 -9 --------- Run | Yrd Mat Mat Total 410 | 47 251 112 Wait 9 | . 9 . Move 281 | 39 176 66 Hop . | . . . Pick Up 10 | 2 7 1 Fast Attach 11 | 6 4 1 Attach 3 | . 1 2 Detach 2 | . 2 . Swap 8 | . 6 2 Drop 3 | . 3 . Fire 79 | . 42 37 Melee . | . . . Ram . | . . . Kick . | . . . Crush 4 | . 1 3 Escape Stasis . | . . . Rewire . | . . . Trap . | . . . Miscellaneous . | . . . Route ------- -11/Scrapyard -10/Materials -9/Materials History --------- Turn | Location | Event 41 | -11/Scrapyard | Discovered new exit (range 14) 72 | -11/Scrapyard | Entered Materials 304 | -10/Materials | Build established: Mutant 477 | -10/Materials | Discovered new exit (range 11) 508 | -10/Materials | Entered another Materials area 508 | -9/Materials | Evolved 2 slots: Propulsion x1, Utility x1 646 | -9/Materials | System corruption reached 10% 676 | -9/Materials | Lost 3 parts (1p1u1w) 712 | -9/Materials | Self-destructed Last Messages --------------- 00674_ Acquired 20 matter. 00678_ Acquired Heat Sink. 00682_ Acquired 10 matter. 00684_ Slammed into W-16 Scout. 00692_ System corrupted: Med. Laser failed to cycle. 00696_ PCCNZQL#W%CJNB3TLVJKK>U8MYTTL 00696_ Y-45 Defender suffers critical hit (Burn). 00698_ K-01 Serf cleans the Material Processor. 00699_ Y-45 Defender heat damages Beam Rifle, Lgt. Treads, Imp. Ion Engine. 00700_ Y-45 Defender heat damages Lgt. Treads. 00700_ Y-45 Defender suffers critical hit (Burn). 00704_ Y-45 Defender heat damages Heat Sink. 00706_ Y-45 Defender heat damages Lgt. Treads. 00710_ Y-45 Defender heat damages core (-6). 00710_ Hvy. Assault Rifle melted. 00710_ Y-45 Defender destroyed. Map ----- +----------------------------------------------------+ | ?????????????????????????????#####+##### #?????? | | ????????????????????????????????# #?????? | | ?????????????????????????????#### #?????? | | ?????????????????????????????# #?????? | | ?????????????????????????????# ##+##### #?????? | | ?????????????????????????????# # # #?????? | | ?????????????????????????????# + # #?????? | | ?????????????????????????????# ## + #?????? | | ?????????????????????????##### ## """ # ?????? | | ?????????????????????????+ ## """ # ????? | | ?????????????????????????##### ## """ # ???? | | ?????????????????????????????#=###############+??? | | ?????????????????????????????# #?????????????????? | | ?????????????????????????????#/#?????????????????? | | ?????????????????????????#####+#####?????????????? | | ?????????????????????????# = ![! #?????????????? | | ?????????????????????????# = = #?????????????? | | ?????????????????????#+#?# #?????????????? | | ???????????????????? # """ """ #?????????????? | | ????????????????????? + """ """ #?????????????? | | ????????????????????? # """ """ #?????????????? | | ????????????????#+???????# #?????????????? | | ???????????????? ?????# [ #?????????????? | | ??????????????????""" ???######+#############????? | | ?????????????????""""" #######%* #?? | | ?????????????????""""" %u@%%!% % ?? | | ?????????????????""""" ########## ?? | | ??????????????????""" ????????????######### ?? | | ???????????????? ?????????????????????????????? | | ????????????????##???????????????????????????????? | | ?????????????????????????????????????????????????? | | ?????????????????????????????????????????????????? | | ?????????????????????????????????????????????????? | | ?????????????????????????????????????????????????? | | ?????????????????????????????????????????????????? | | ?????????????????????????????????????????????????? | | ?????????????????????????????????????????????????? | | ?????????????????????????????????????????????????? | | ?????????????????????????????????????????????????? | | ?????????????????????????????????????????????????? | | ?????????????????????????????????????????????????? | | ?????????????????????????????????????????????????? | | ?????????????????????????????????????????????????? | | ?????????????????????????????????????????????????? | | ?????????????????????????????????????????????????? | | ?????????????????????????????????????????????????? | | ?????????????????????????????????????????????????? | | ?????????????????????????????????????????????????? | | ?????????????????????????????????????????????????? | | ?????????????????????????????????????????????????? | +----------------------------------------------------+ Best States ------------- Heat Dissipation 38 Energy Generation 10 Energy Capacity 250 Matter Stores 300 Matter Capacity 300 Sight Range 16 Terrain Scan Density 10 Evasion (%) 40 Targeting Accuracy 5 Recoil Reduction 3 Offensive Hacking 10 Item Schematics ----------------- Lgt. Treads | -9/Materials | Scanalyzed Robot Schematics ------------------ None Fabricated ------------ Nothing Alien Tech Used ----------------- None Achievements -------------- None Challenges ------------ None Game ------ Seed SystemAssemblyNetwork Manual? 0 Play Time 00:13:50 Cumulative 29.9 hours Start 2025.03.28 @ 18:00:47 End 2025.03.28 @ 18:14:23 Sessions 1 Manual Loads 0 Difficulty Rogue Special Mode None Game No. 20 Rogue 20 Adventurer 0 Explorer 0 Win Type - Total 0 Types 0/0/0/0/0/0/0/0/0 Lore% 7 Gallery% 21 Achievement% 29 Wizard Run 0 Options --------- Layout 1 ASCII 0 Keyboard 0 Movement Mouse Keybinds 0 Fullscreen 1 Font 24/Smallcaps Map View 50x35 Zoom Use 0% Tactical HUD 1 Map Filters NONE Filters NONE Steam 1 RUN: e55b29f6-ba5f-431c-a133-b6d3ba858ff2